Cogmind - Beta 12 @@@ ROGUE MODE // 2023.03.16 @ 19:59:34 Player: Exp. Geonium Core Result: Destroyed by DAS Turret with DAS Cannon Performance ------------- Evolutions (1) 500 Regions Visited (5) 1000 Robots Destroyed (22) 110 Value Destroyed (405) 405 Prototype IDs (26) 520 Alien Tech Used (0) 0 Bonus (443) 443 TOTAL SCORE: 2978 Bonus ------- Follower Combat Kills 143 Aligned with FarCom 300 Cogmind --------- Core Integrity 0/400 Matter 76/300 Energy 97/100 System Corruption 2% Temperature Cool (1) Movement Walking (120) Location -9/Exiles Parts ------- > --- POWER (1) -------- (None) > --- PROPULSION (4) --- Advanced Myomer Leg > --- UTILITY (2) ------ (None) > --- WEAPON (2) ------- Light Assault Rifle Rocket Launcher > --- INVENTORY (5) ---- Light Ion Engine Medium Storage Unit Hacking Suite Peak State ------------ > --- POWER ------------ Light Ion Engine > --- PROPULSION ------- Light Treads Light Treads Light Treads Light Treads > --- UTILITY ---------- Huge Storage Unit Hacking Suite > --- WEAPON ----------- Heavy Assault Rifle Heavy Assault Rifle > --- INVENTORY -------- Light Ion Engine Fission Core Light Fission Core Light Fission Core Light Treads Light Treads Light Treads Aluminum Leg Aluminum Leg Improved Heat Sink Medium Storage Unit Targeting Computer Light Armor Plating Light Armor Plating Hacking Suite Improved EM Shotgun Latent Energy Streamer Assault Rifle Assault Rifle Assault Rifle Light Assault Rifle Grenade Launcher Rocket Launcher Rocket Launcher Plasma Flamer [Rating: 18] Favorites ----------- Power Light Ion Engine Engine Light Ion Engine Propulsion Light Treads Treads Light Treads Leg Aluminum Leg Utility Hacking Suite Storage Huge Storage Unit Hackware Hacking Suite Protection Light Armor Plating Weapon Assault Rifle Energy Gun Improved EM Shotgun Ballistic Gun Assault Rifle Launcher Grenade Launcher Special Weapon Plasma Flamer Build | -11 -10 -10 -9 -9 -9 ------- Run | Jun Mat Min Mat Min Exi Slots Evolved 2 | . . . 2 . . Power . | . . . . . . Propulsion 2 | . . . 2 . . Utility . | . . . . . . Weapon . | . . . . . . Parts Attached 45 | 2 8 . 12 3 20 Power 1 | . . . . . 1 Engine 1 | . . . . . 1 Core . | . . . . . . Reactor . | . . . . . . Propulsion 13 | 2 . . 4 1 6 Treads 10 | 2 . . 4 1 3 Leg 3 | . . . . . 3 Wheel . | . . . . . . Hover . | . . . . . . Flight . | . . . . . . Utility 7 | . 4 . 1 . 2 Device . | . . . . . . Storage 4 | . 3 . 1 . . Processor . | . . . . . . Hackware 1 | . 1 . . . . Protection 2 | . . . . . 2 Artifact . | . . . . . . Weapon 24 | . 4 . 7 2 11 Energy Gun 5 | . . . 3 . 2 Energy Cannon . | . . . . . . Ballistic Gun 13 | . 2 . 3 1 7 Ballistic Cannon . | . . . . . . Launcher 5 | . 2 . 1 1 1 Special Weapon 1 | . . . . . 1 Impact Weapon . | . . . . . . Slashing Weapon . | . . . . . . Piercing Weapon . | . . . . . . Special Melee Weapon . | . . . . . . Unidentified Prototypes 3 | . . . 2 . 1 Corrupted Parts 2 | . . . . . 2 System Corruption 2 | . . . . . 2 Parts Lost 20 | . . . . 1 19 Power 1 | . . . . . 1 Propulsion 10 | . . . . 1 9 Utility 2 | . . . . . 2 Weapon 7 | . . . . . 7 Highest Loss Streak 11 | . . . . 1 11 To Critical Strikes 12 | . . . . . 12 Average Slot Usage (%) 93 | . 94 100 97 100 78 Engine 11 | . 14 14 11 11 7 Treads 35 | . 28 28 42 44 31 Storage 10 | . 14 14 11 11 6 Hackware 10 | . 8 14 11 11 6 Ballistic Gun 22 | . 27 28 19 22 19 Naked Turns 4 | . . . . . 4 Heaviest Build 89 | 11 16 16 88 88 89 Greatest Support 80 | 40 40 40 80 80 80 Greatest Overweight (x) 1 | . . . 1 1 1 Average Overweight (x) . | . . . . 1 . Largest Inventory Capacity 25 | 8 25 10 25 25 25 Average Capacity 17 | 8 9 10 18 25 17 Most Carried 25 | 6 8 9 18 21 25 Average Carried 13 | 2 6 8 13 20 15 Final Capacity 25 | 8 10 10 25 25 5 Final Carried 21 | 2 8 9 18 21 3 Class Distribution -------------------- 58% | Scavenger-Mutant 41% | Mutant Dominant Class ---------------- Mutant | -10/Materials Mutant | -10/Mines Scavenger-Mutant | -9/Materials Scavenger-Mutant | -9/Mines Scavenger-Mutant | -9/Exiles Resources | -11 -10 -10 -9 -9 -9 ----------- Run | Jun Mat Min Mat Min Exi Matter Collected 864 | 220 186 22 215 65 156 Remotely . | . . . . . . Salvage Created 670 | . 209 . 235 94 132 Parts 52 | . 16 . 21 9 6 Haulers Intercepted 3 | . 1 . 2 . . Recyclers Shooed 3 | . 3 . . . . Parts Field Recycled . | . . . . . . Retrieved Matter . | . . . . . . Parts Self-Destructed . | . . . . . . Prevented . | . . . . . . Kills | -11 -10 -10 -9 -9 -9 ------- Run | Jun Mat Min Mat Min Exi Combat Hostiles Destroyed 16 | . 6 . 5 2 3 Guns 8 | . 3 . 3 1 1 AOE 8 | . 3 . 2 1 2 Classes Destroyed 8 | . 5 . 1 1 1 Tunneler 2 | . . . . 2 . Hauler 3 | . 1 . 2 . . Recycler 1 | . 1 . . . . Operator 2 | . 2 . . . . Swarmer 6 | . 3 . 3 . . Grunt 5 | . 3 . . 2 . Sentry 2 | . . . 2 . . Assembled 2 | . . . . . 2 Best Kill Streak 6 | . 6 . 3 2 1 Combat Bots Only 3 | . 3 . 3 2 1 Max Kills in Single Turn 2 | . 2 . 2 1 1 Gunslinging . | . . . . . . Exploded 2 | . 2 . 2 1 1 Melee . | . . . . . . Uniques/NPCs Destroyed 1 | . . . . . 1 8R-AWN (-9/Exiles) Combat | -11 -10 -10 -9 -9 -9 -------- Run | Jun Mat Min Mat Min Exi Damage Taken 2623 | . 475 . 191 123 1834 Core 560 | . 124 . 29 11 396 Absorbed by Shields . | . . . . . . Core Remaining (%) 75 | 100 . 50 . . . Volleys Fired 112 | . 23 . 19 6 64 Largest 2 | . 2 . 2 2 2 Hottest 100 | . 40 . 68 40 100 Shots Fired 197 | . 39 . 37 11 110 Gun 177 | . 32 . 36 10 99 Cannon . | . . . . . . Launcher 13 | . 7 . 1 1 4 Special 7 | . . . . . 7 Kinetic 161 | . 32 . 32 10 87 Thermal 7 | . . . . . 7 Explosive 13 | . 7 . 1 1 4 Electromagnetic 16 | . . . 4 . 12 Robot Hit Streak 16 | . 8 . 16 10 16 Robot Miss Streak 6 | . 2 . 2 1 6 Penetration Max . | . . . . . . Secondary Targets 2 | . 2 . . . . Max Gunslinging Chain 1 | . 1 . . . . Shots Hit Robots 134 | . 26 . 26 8 74 Core Hits 53 | . 16 1 9 7 20 Critical Kills . | . . . . . . Critical Parts Destroyed . | . . . . . . Critical Strikes 1 | . . . . . 1 Burn 1 | . . . . . 1 Melee Attacks . | . . . . . . Impact . | . . . . . . Slashing . | . . . . . . Piercing . | . . . . . . Sneak Attacks . | . . . . . . Combat Hostiles . | . . . . . . Follow-up Attacks . | . . . . . . Damage Inflicted 2291 | . 649 5 506 211 920 Guns 1485 | . 224 . 377 100 784 Cannons . | . . . . . . Explosions 702 | . 425 . 117 94 66 Melee . | . . . . . . Ramming 41 | . . 5 12 17 7 Kinetic 1399 | . 224 . 301 100 774 Thermal 63 | . . . . . 63 Explosive 702 | . 425 . 117 94 66 Electromagnetic 86 | . . . 76 . 10 Impact . | . . . . . . Slashing . | . . . . . . Piercing . | . . . . . . Highest Corruption 2 | . . . . . 2 Average Corruption 1 | . . . . . 1 Corruption Purged . | . . . . . . Corruption Blocked . | . . . . . . Effects 7 | . . . . . 7 Message Errors 1 | . . . . . 1 Matter Fused 2 | . . . . . 2 Energy Discharges 3 | . . . . . 3 Data Loss (minor) 1 | . . . . . 1 Overload Shots . | . . . . . . Overflow Damage 36 | . 24 . 11 1 . Projectiles . | . . . . . . Explosions 36 | . 24 . 11 1 . Melee . | . . . . . . Knockbacks . | . . . . . . Impact . | . . . . . . Kinetic . | . . . . . . Secondary . | . . . . . . Self-Inflicted Damage 66 | . 3 . . 22 41 Shots 3 | . 1 . . 1 1 Rammed 9 | . . 2 3 1 3 Targets Rammed 16 | . . 2 3 2 9 Kicked 6 | . . . . . 6 Crushed 1 | . . . . 1 . Highest Temperature 164 | . 15 . 8 4 164 Average Temperature 34 | . 5 . 5 2 75 Received Heat Transfer 339 | . 210 . 51 78 . Siege Activations . | . . . . . . Robots Corrupted . | . . . . . . Combat Hostiles . | . . . . . . Parts Fried 1 | . . . 1 . . Impact Corruptions . | . . . . . . Robots Melted . | . . . . . . Combat Hostiles . | . . . . . . Parts Melted . | . . . . . . Heat Transferred 140 | . . . . . 140 Parts Sabotaged . | . . . . . . Parts Stolen . | . . . . . . Parts Stripped . | . . . . . . Power Chain Reactions . | . . . . . . Missiles Intercepted . | . . . . . . Alert | -11 -10 -10 -9 -9 -9 ------- Run | Jun Mat Min Mat Min Exi Peak Influence 282 | . 277 33 282 86 . Initial 34 | . . 33 . 34 . Average 71 | . 119 20 165 28 . Maximum Alert Level 1 | . 1 . 1 . . Low Security (%) 85 | 100 78 100 49 100 . Level 1 14 | . 21 . 50 . . Level 2 . | . . . . . . Level 3 . | . . . . . . Level 4 . | . . . . . . Level 5 . | . . . . . . High Security . | . . . . . . Max Security . | . . . . . . Squads Dispatched 1 | . 1 . . . . Investigation . | . . . . . . Extermination . | . . . . . . Reinforcement 1 | . 1 . . . . Assault . | . . . . . . Garrison . | . . . . . . Intercept . | . . . . . . Searches Triggered . | . . . . . . Construction Impeded . | . . . . . . Haulers Reinforced . | . . . . . . Active Scanning Responses . | . . . . . . Cargo Convoy Interrupts . | . . . . . . Stealth | -11 -10 -10 -9 -9 -9 --------- Run | Jun Mat Min Mat Min Exi Distress Signals 2 | . . . 2 . . Communications Jammed . | . . . . . . Distress Signals . | . . . . . . Times Spotted 40 | . 10 . 11 2 17 Peak Tracking Total 9 | . 5 . 4 2 9 Tactical Retreats 4 | . . . . . 4 Traps | -11 -10 -10 -9 -9 -9 ------- Run | Jun Mat Min Mat Min Exi Traps Triggered . | . . . . . . Indirectly . | . . . . . . Trap Hack Attempts . | . . . . . . Triggered . | . . . . . . Disarmed . | . . . . . . Reprogrammed . | . . . . . . Reused . | . . . . . . Traps Extracted . | . . . . . . Installed . | . . . . . . Triggered . | . . . . . . Exploded 3 | . . . . . 3 Machines | -11 -10 -10 -9 -9 -9 ---------- Run | Jun Mat Min Mat Min Exi Machines Disabled 5 | . . . . . 5 Max in Single Turn 1 | . . . . . 1 Machines Repaired . | . . . . . . Machines Sabotaged . | . . . . . . Overloaded Fab Kills . | . . . . . . Hacking | -11 -10 -10 -9 -9 -9 --------- Run | Jun Mat Min Mat Min Exi Machines Accessed 9 | . 5 . 3 . 1 Terminals 8 | . 5 . 3 . . Fabricators . | . . . . . . Repair Stations . | . . . . . . Recycling Units . | . . . . . . Scanalyzers . | . . . . . . Garrison Access . | . . . . . . Total Hacks 26 | . 14 . 11 . 1 Successful 14 | . 8 . 5 . 1 Failed 11 | . 5 . 6 . . Catastrophic 1 | . . . 1 . . Database Lockouts 1 | . 1 . . . . Manual 18 | . 9 . 8 . 1 Terminals 25 | . 14 . 11 . . Fabricators . | . . . . . . Repair Stations . | . . . . . . Recycling Units . | . . . . . . Scanalyzers . | . . . . . . Garrison Access . | . . . . . . Terminal Hacks 11 | . 6 . 4 . 1 Robot Analysis 2 | . 2 . . . . Branch Access Points 2 | . 1 . 1 . . Terminal Index 1 | . 1 . . . . Recycling Unit Index 1 | . . . 1 . . Hauler Manifests 2 | . 1 . 1 . . Zone Layout 2 | . 1 . 1 . . EX-Prototype ID Bank 1 | . . . . . 1 Fabricator Hacks . | . . . . . . Repair Station Hacks . | . . . . . . Recycling Unit Hacks . | . . . . . . Scanalyzer . | . . . . . . Garrison Access Hacks . | . . . . . . Unauthorized Hacks 3 | . 2 . 1 . . Terminals 3 | . 2 . 1 . . Botnet 1 | . 1 . . . . Operators 2 | . 1 . 1 . . Fabricators . | . . . . . . Repair Stations . | . . . . . . Recycling Units . | . . . . . . Scanalyzers . | . . . . . . Garrison Access . | . . . . . . Data Cores Recovered . | . . . . . . Used . | . . . . . . Hacking Detections 7 | . 4 . 3 . . Full Trace Events 1 | . 1 . . . . Feedback Events . | . . . . . . Feedback Blocked . | . . . . . . Robot Schematics Acquired . | . . . . . . Robots Built . | . . . . . . Authchips . | . . . . . . Time . | . . . . . . Total Robot Build Rating . | . . . . . . Part Schematics Acquired . | . . . . . . Parts Built . | . . . . . . Authchips . | . . . . . . Time . | . . . . . . Total Part Build Rating . | . . . . . . Parts Repaired . | . . . . . . Time . | . . . . . . Parts Recycled . | . . . . . . Recycled Matter . | . . . . . . Retrieved Matter . | . . . . . . Retrieved Components . | . . . . . . Parts Scanalyzed . | . . . . . . Part Schematics Acquired . | . . . . . . Parts Damaged . | . . . . . . Bothacking | -11 -10 -10 -9 -9 -9 ------------ Run | Jun Mat Min Mat Min Exi Used RIF Installer . | . . . . . . Robots Hacked . | . . . . . . Non-combat . | . . . . . . Combat . | . . . . . . Robot Hacks Applied . | . . . . . . Relay Couplers Released . | . . . . . . Fabnet Peak Effective % . | . . . . . . Robots Rewired . | . . . . . . Allies Hacked . | . . . . . . Hacks Repelled . | . . . . . . Allies | -11 -10 -10 -9 -9 -9 -------- Run | Jun Mat Min Mat Min Exi Total Allies 5 | . . 3 . 2 . Largest Group 3 | . . 3 3 2 2 Highest-Rated Group 41 | . . 40 40 41 41 Highest-Rated Ally 31 | . . 16 16 31 31 Total Orders . | . . . . . . Ally Attacks 36 | . . . 36 . . Total Damage 430 | . . . 430 . . Kills 5 | . . . 5 . . Allies Corrupted . | . . . . . . Allies Melted . | . . . . . . Intel | -11 -10 -10 -9 -9 -9 ------- Run | Jun Mat Min Mat Min Exi Robot Analysis Total 2 | . 2 . . . . Derelict Logs Recovered 3 | . . 2 . 1 . Drone Launches . | . . . . . . Drone Recoveries . | . . . . . . Exploration | -11 -10 -10 -9 -9 -9 ------------- Run | Jun Mat Min Mat Min Exi Turns Passed 3865 | 14 606 648 579 1132 886 Spaces Moved 1754 | 7 331 403 237 460 316 Core 53 | . . . . . 53 Treads 1648 | 7 331 403 237 460 210 Legs 53 | . . . . . 53 Wheels . | . . . . . . Hover . | . . . . . . Flight . | . . . . . . Fastest Speed 50 | 160 160 160 160 240 50 Average Speed 192 | 160 160 160 202 240 190 Slowest Speed 240 | 160 160 160 240 240 240 Overloaded Moves . | . . . . . . Propulsion Burnouts . | . . . . . . Robots Hopped . | . . . . . . Cave-ins Triggered . | . . . . . . Exploration Rate (%) 58 | 2 66 97 26 98 61 Regions Visited 5 Branch Regions 3 Pre-discovered Areas 1 | . . . . 1 . Known Exits Taken 2 | . 1 . 1 . . Unknown Exits Taken 3 | 1 . 1 . 1 . Scrap Searched 3 | . . 1 . 2 . Spaces Dug . | . . . . . . Terrain Destroyed 66 | . 42 . 11 7 6 Melee . | . . . . . . Projectile . | . . . . . . AOE 66 | . 42 . 11 7 6 Terrain Rammed . | . . . . . . Walls Destroyed . | . . . . . . Machines Disabled . | . . . . . . Actions | -11 -10 -10 -9 -9 -9 --------- Run | Jun Mat Min Mat Min Exi Total 2039 | 12 369 405 296 474 483 Wait 68 | . . . 9 . 59 Move 1749 | 6 330 402 236 459 316 Hop . | . . . . . . Pick Up 28 | . 7 1 11 4 5 Fast Attach 16 | . . . 5 . 11 Attach 10 | 2 1 . 2 1 4 Detach 1 | . . . . . 1 Swap 19 | . 7 . 5 2 5 Drop 20 | 4 1 . 6 . 9 Fire 112 | . 23 . 19 6 64 Melee . | . . . . . . Ram . | . . . . . . Kick 6 | . . . . . 6 Crush 10 | . . 2 3 2 3 Escape Stasis . | . . . . . . Rewire . | . . . . . . Trap . | . . . . . . Miscellaneous . | . . . . . . Route ------- -11/Junkyard -10/Materials (discovered 4 exits: *Mat x2 / *Min x2) -10/Mines (discovered 2 exits: *Mat x2) -9/Materials (discovered 3 exits: [*Mat] / *Min x2) -9/Mines (discovered 3 exits: [*Mat x2] / *Exi) -9/Exiles (discovered 1 exit: [*Min]) History --------- Turn | Location | Event 6 | -11/Junkyard | Discovered new exit (range 3) 15 | -11/Junkyard | Entered Materials 302 | -10/Materials | Identified exit to Mines 306 | -10/Materials | Build established: Mutant 372 | -10/Materials | Discovered new exit (range 15) 552 | -10/Materials | Discovered new exit (range 9) 556 | -10/Materials | Central database locked down 621 | -10/Materials | Entered Mines 641 | -10/Mines | Received a Rocket Launcher from a helpful Derelict 842 | -10/Mines | Learned 2 Materials zone layouts 848 | -10/Mines | Discovered new exit (range 10) 1208 | -10/Mines | Learned Materials emergency access door positions 1221 | -10/Mines | Assisted by bots powering up and referring to "LRC-V3" 1245 | -10/Mines | Discovered new exit (range 15) 1269 | -10/Mines | Entered Materials 1269 | -9/Materials | Accompanied by 3 allies 1269 | -9/Materials | Evolved 2 slots: Propulsion x2 1463 | -9/Materials | Identified exit to Mines 1463 | -9/Materials | Discovered new exit (range 15) 1656 | -9/Materials | Build established: Scavenger-Mutant 1848 | -9/Materials | Entered Mines 1987 | -9/Mines | Discovered new exit (range 12) 2619 | -9/Mines | A weapon hastily lodged in a ceiling crevice suddenly fell to the ground 2821 | -9/Mines | Discovered new exit (range 8) 2970 | -9/Mines | Deemed a non-threat by the Exiles lab entrance 2970 | -9/Mines | Discovered new exit (range 5) 2980 | -9/Mines | Entered Exiles 2980 | -9/Exiles | Accompanied by 2 allies 3010 | -9/Exiles | Led the pair of lost Derelicts to a safe place 3070 | -9/Exiles | Met 8R-AWN 3103 | -9/Exiles | Met EX-HEX 3171 | -9/Exiles | Met EX-BIN 3199 | -9/Exiles | Aligned with FarCom system 3202 | -9/Exiles | Given EX-Vault access code 3257 | -9/Exiles | Opened EX-Vault 3283 | -9/Exiles | Found Latent Energy Streamer 3334 | -9/Exiles | Warned to stay clear of 0b10 Research branches 3406 | -9/Exiles | Met EX-DEC 3456 | -9/Exiles | Attacked by the Exiles 3666 | -9/Exiles | Lost 11 parts (1p6n2u2w) 3666 | -9/Exiles | Core integrity fell below 50% 3785 | -9/Exiles | Lost 7 parts (3n4w) 3787 | -9/Exiles | Core integrity fell below 20% 3790 | -9/Exiles | Destroyed 8R-AWN 3807 | -9/Exiles | Discovered new exit (range 14) 3866 | -9/Exiles | Destroyed by DAS Turret with DAS Cannon Last Messages --------------- 03778_ Penetrated by HV Slug. 03778_ HV Slug penetrates Earth. 03782_ Penetrated by HV Slug. 03782_ HV Slug penetrates Earth. 03782_ Penetrated by HV Slug. 03782_ HV Slug penetrates Earth. 03786_ Penetrated by HV Slug. 03786_ Critical hit (Destroy). 03786_ Assault Rifle destroyed. 03786_ HV Slug penetrates Earth. 03786_ Penetrated by HV Slug. 03786_ HV Slug penetrates Earth. 03790_ 8R-AWN destroyed. 03792_ Acquired 108 matter. 03793_ Acquired Prototype Leg. 03793_ Identified Adv. Myomer Leg. 03802_ System corrupted: Energy discharge (-20). 03807_ EXIT=FOUND 03826_ Acquired Rocket Launcher. 03831_ System corrupted: Component data lost. Map ----- +----------------------------------------------------+ | ????????????????????????????????????????#""""""?# | | ???????????????????????????????????????##"###??# | | ???????????????????????????????????????????????# | | ???????????????????????????????????????????????# | | #?????????????????????????????????????????????## | | ?????????????#######?????????????????????????#" | | #######??????#!!! "#?????????????????????????#" | | # "##?????# "#?????????????????????????#" | | #?????# "#?????????????????????????#" | | ##???## ""#?????????????????????????#" | | #####" ""#????????????? ???????????#" | | # "#" ""#????????????" """????????## | | ## # " #??????????????" ?????????# | | ?#"## #??????????????" ?????????#" | | ?######" ####???????????" "?????????#" | | ??????#### " #?????????? ""?????????#" | | ?######## ][!* #########?????" "?????????##" | | ?# !!"""" ] ! ;; #?????# #????????##"" | | ?#! !! #!" ;;####???### ###?######"" | | ?#! ! "#"" #####X# #"###""""""" | | ?#! ] ""### """""" " "" | | #" !" #""# ##"# "" """ " | | ######"""## # #### % " " | | ?????# ## #### #?### % % | | ?????# #### #???# #??### | | ????# #???# #????# #???# @ | | ???# #????# #?????# #??## | | ??? #?????# #??????# #?# | | ?? #??????# #???????# ?# """" | | ?#????????# #????????? ### ##### | | ??????????# ??????????? ?# ""##???? | | ??????????# ?????????????# ""##????? | | ??????????? ????????????? "##?????? | | ??????????? ????????????? ""#??????? | | ??????????? ?????????????"" ##??????? | | ??????????? ?????????????""" ???????? | | ?????????????????????????"" ???????? | | ??????????????????????????"" t ??????? | | ???????????????????????????""" ???????? | | ?????????????????????????????? ????????? | | ???????????????????????????????? ?????????? | | ???????????????????????????????????? ?????????? | | ?????????????????????????????????????????????????? | | ?????????????????????????????????????????????????? | | ?????????????????????????????????????????????????? | | ?????????????????????????????????????????????????? | | ?????????????????????????????????????????????????? | | ?????????????????????????????????????????????????? | | ?????????????????????????????????????????????????? | | ?????????????????????????????????????????????????? | +----------------------------------------------------+ Best States ------------- Heat Dissipation 28 Energy Generation 10 Energy Capacity 125 Matter Stores 300 Matter Capacity 300 Sight Range 16 Terrain Scan Density 10 Armor Coverage 300 Evasion (%) 55 Recoil Reduction 4 Offensive Hacking 10 Item Schematics ----------------- None Robot Schematics ------------------ None Fabricated ------------ Nothing Alien Tech Used ----------------- None Achievements -------------- None Challenges ------------ None Game ------ Seed CargoImpactAmplifier Manual? 0 Play Time 00:27:46 Cumulative 333.2 hours Start 2023.03.16 @ 19:30:56 End 2023.03.16 @ 19:59:34 Sessions 1 Manual Loads 0 Difficulty Rogue Special Mode None Game No. 385 Rogue 385 Adventurer 0 Explorer 0 Win Type - Total 11 Types 8/0/2/1/0/0/0/0/0 Lore% 78 Gallery% 88 Achievement% 78 Wizard Run 0 Options --------- ASCII 0 Keyboard 0 Movement Numpad Keybinds 0 Fullscreen 1 Font 18/Terminus Map View 76x50 Tactical HUD 1 Map Filters NONE Filters NONE Steam 1 RUN: 583fc660-5bc3-47b7-94c5-29e0f07f264a